[Event "*** Titled Tuesday Blitz"]
[Site "Chess.com"]
[Date "2020.12.01"]
[Round "9"]
[White "2nd_life"]
[Black "DenLaz"]
[Result "0-1"]
[WhiteElo "2572"]
[BlackElo "2802"]
[TimeControl "180+1"]
[EndTime "11:44:14 PST"]
[Termination "DenLaz won on time"]

1. e4 {[%clk 0:03:00.9]} 1... e5 {[%clk 0:02:59.5]} 2. f4 {[%clk 0:03:00.5]}
2... Bc5 {[%clk 0:02:58.1]} 3. Nf3 {[%clk 0:03:00.4]} 3... d6 {[%clk 0:02:57.7]}
4. Nc3 {[%clk 0:02:59.6]} 4... Nf6 {[%clk 0:02:55.9]} 5. Bc4 {[%clk 0:02:57.9]}
5... O-O {[%clk 0:02:55.8]} 6. d3 {[%clk 0:02:53.8]} 6... exf4 {[%clk
0:02:55.3]} 7. Bxf4 {[%clk 0:02:51]} 7... Nc6 {[%clk 0:02:55.2]} 8. h3 {[%clk
0:02:35.5]} 8... Be6 {[%clk 0:02:51.1]} 9. Bb3 {[%clk 0:02:13.5]} 9... Nd4
{[%clk 0:02:37.3]} 10. Na4 {[%clk 0:01:48.9]} 10... Bxb3 {[%clk 0:01:50.2]} 11.
axb3 {[%clk 0:01:46.3]} 11... Ne6 {[%clk 0:01:49.4]} 12. Qd2 {[%clk 0:01:30.5]}
12... Nh5 {[%clk 0:01:07.1]} 13. Bh2 {[%clk 0:00:54.2]} 13... f5 {[%clk
0:01:05.8]} 14. Nxc5 {[%clk 0:00:51.1]} 14... dxc5 {[%clk 0:01:04.5]} 15. exf5
{[%clk 0:00:50.2]} 15... Rxf5 {[%clk 0:01:04.2]} 16. O-O {[%clk 0:00:49.7]}
16... Qd5 {[%clk 0:00:50.9]} 17. c4 {[%clk 0:00:32]} 17... Qd7 {[%clk
0:00:48.3]} 18. g4 {[%clk 0:00:20.7]} 18... Rxf3 {[%clk 0:00:44.7]} 19. Rxf3
{[%clk 0:00:20.5]} 19... Nd4 {[%clk 0:00:45.4]} 20. Re3 {[%clk 0:00:18]} 20...
Nxb3 {[%clk 0:00:42.1]} 21. Qg2 {[%clk 0:00:10.3]} 21... Nxa1 {[%clk 0:00:39.7]}
22. gxh5 {[%clk 0:00:04]} 22... Qd4 {[%clk 0:00:17.8]} 23. Qe4 {[%clk
0:00:03.7]} 23... Nc2 {[%clk 0:00:16.2]} 24. Qxd4 {[%clk 0:00:03.5]} 24... Nxd4
{[%clk 0:00:16.6]} 25. Re7 {[%clk 0:00:03.8]} 25... Rc8 {[%clk 0:00:15.8]} 26.
Be5 {[%clk 0:00:02.9]} 26... Nf5 {[%clk 0:00:15.2]} 27. Rd7 {[%clk 0:00:02.7]}
27... Kf8 {[%clk 0:00:14.5]} 28. Rxc7 {[%clk 0:00:02.6]} 28... Rxc7 {[%clk
0:00:14.4]} 29. Bxc7 {[%clk 0:00:03.1]} 29... Ke7 {[%clk 0:00:14.6]} 30. Kf2
{[%clk 0:00:03.5]} 30... Kd7 {[%clk 0:00:14.1]} 31. Be5 {[%clk 0:00:03.4]} 31...
Ke6 {[%clk 0:00:14.2]} 32. Bc3 {[%clk 0:00:03.6]} 32... g6 {[%clk 0:00:13.8]}
33. hxg6 {[%clk 0:00:03.4]} 33... hxg6 {[%clk 0:00:14.7]} 34. Kf3 {[%clk
0:00:04]} 34... Nd6 {[%clk 0:00:15.3]} 35. Kf4 {[%clk 0:00:03.9]} 35... Nf7
{[%clk 0:00:15.9]} 36. h4 {[%clk 0:00:03.7]} 36... a6 {[%clk 0:00:16]} 37. b3
{[%clk 0:00:03.7]} 37... b5 {[%clk 0:00:16.2]} 38. Bb2 {[%clk 0:00:03.9]} 38...
Nd8 {[%clk 0:00:12.8]} 39. Kg5 {[%clk 0:00:02.2]} 39... Kf7 {[%clk 0:00:11.9]}
40. Kf4 {[%clk 0:00:02]} 40... Nc6 {[%clk 0:00:11.3]} 41. Ke4 {[%clk 0:00:01.8]}
41... Ke6 {[%clk 0:00:11.3]} 42. Ba3 {[%clk 0:00:02.2]} 42... b4 {[%clk
0:00:11.4]} 43. Bc1 {[%clk 0:00:02.2]} 43... Na5 {[%clk 0:00:11.2]} 0-1

[Event "*** Titled Tuesday Blitz"]
[Site "Chess.com"]
[Date "2020.12.01"]
[Round "9"]
[White "LuckSlayeer"]
[Black "SlovenskiZmaj"]
[Result "1/2-1/2"]
[WhiteElo "2581"]
[BlackElo "2454"]
[TimeControl "180+1"]
[EndTime "11:44:14 PST"]
[Termination "Game drawn by repetition"]

1. Nf3 {[%clk 0:03:00.9]} 1... d6 {[%clk 0:02:56.7]} 2. d4 {[%clk 0:03:00.5]}
2... f5 {[%clk 0:02:56.5]} 3. c4 {[%clk 0:02:58.6]} 3... Nf6 {[%clk 0:02:57.1]}
4. Nc3 {[%clk 0:02:58.9]} 4... g6 {[%clk 0:02:57.1]} 5. Bg5 {[%clk 0:02:54.4]}
5... Nbd7 {[%clk 0:02:57.3]} 6. e3 {[%clk 0:02:54.5]} 6... Bg7 {[%clk
0:02:57.2]} 7. Bd3 {[%clk 0:02:54.5]} 7... O-O {[%clk 0:02:56.1]} 8. Bxf6 {[%clk
0:02:53.1]} 8... Nxf6 {[%clk 0:02:55.4]} 9. Qc2 {[%clk 0:02:53.5]} 9... Qe8
{[%clk 0:02:31.8]} 10. Nb5 {[%clk 0:02:24.3]} 10... Qd8 {[%clk 0:02:31.2]} 11.
h4 {[%clk 0:02:19.5]} 11... c6 {[%clk 0:02:31]} 12. Nc3 {[%clk 0:02:19.2]} 12...
Qe8 {[%clk 0:02:27.5]} 13. e4 {[%clk 0:02:06.8]} 13... fxe4 {[%clk 0:02:26.2]}
14. Nxe4 {[%clk 0:02:07.7]} 14... Nxe4 {[%clk 0:02:24.2]} 15. Bxe4 {[%clk
0:02:08.6]} 15... Bg4 {[%clk 0:02:20.2]} 16. O-O-O {[%clk 0:02:02.6]} 16... Bxf3
{[%clk 0:01:22.2]} 17. gxf3 {[%clk 0:01:56.5]} 17... e5 {[%clk 0:01:21.8]} 18.
d5 {[%clk 0:01:52.6]} 18... c5 {[%clk 0:01:21.8]} 19. h5 {[%clk 0:01:50.8]}
19... g5 {[%clk 0:01:18.5]} 20. Bxh7+ {[%clk 0:01:49.2]} 20... Kh8 {[%clk
0:01:18.7]} 21. h6 {[%clk 0:01:39.9]} 21... Bf6 {[%clk 0:01:15.7]} 22. Bg6
{[%clk 0:01:23.7]} 22... Qd7 {[%clk 0:01:09.3]} 23. h7 {[%clk 0:01:11.1]} 23...
b5 {[%clk 0:01:09.1]} 24. Bf5 {[%clk 0:01:08.7]} 24... Qb7 {[%clk 0:01:05.9]}
25. Be6 {[%clk 0:01:08.7]} 25... bxc4 {[%clk 0:00:59.5]} 26. Qxc4 {[%clk
0:00:44.5]} 26... Rab8 {[%clk 0:00:45.8]} 27. b3 {[%clk 0:00:44.5]} 27... Qb4
{[%clk 0:00:29.9]} 28. Qxb4 {[%clk 0:00:18]} 28... Rxb4 {[%clk 0:00:30.8]} 29.
Bf5 {[%clk 0:00:13.4]} 29... Rf4 {[%clk 0:00:26.9]} 30. Be4 {[%clk 0:00:08.3]}
30... g4 {[%clk 0:00:26.8]} 31. Kc2 {[%clk 0:00:06]} 31... gxf3 {[%clk
0:00:26.6]} 32. Kd3 {[%clk 0:00:06.5]} 32... Rg4 {[%clk 0:00:18.8]} 33. Rdg1
{[%clk 0:00:04.6]} 33... Rxg1 {[%clk 0:00:14.1]} 34. Rxg1 {[%clk 0:00:05.5]}
34... Bg7 {[%clk 0:00:13.6]} 35. Rg6 {[%clk 0:00:03.6]} 35... Bf6 {[%clk
0:00:05.4]} 36. Bf5 {[%clk 0:00:02]} 36... a6 {[%clk 0:00:04.1]} 37. Ke4 {[%clk
0:00:02]} 37... Be7 {[%clk 0:00:03.1]} 38. Re6 {[%clk 0:00:01.7]} 38... Rf7
{[%clk 0:00:01.9]} 39. Rg6 {[%clk 0:00:02.1]} 39... Rf8 {[%clk 0:00:01.5]} 40.
Re6 {[%clk 0:00:02.4]} 40... Rf7 {[%clk 0:00:01.8]} 41. Bg6 {[%clk 0:00:02.9]}
41... Rg7 {[%clk 0:00:01.8]} 42. Bf5 {[%clk 0:00:02.9]} 42... Rf7 {[%clk
0:00:02.2]} 1/2-1/2

[Event "*** Titled Tuesday Blitz"]
[Site "Chess.com"]
[Date "2020.12.01"]
[Round "9"]
[White "PriSachu"]
[Black "MFBerna"]
[Result "0-1"]
[WhiteElo "2521"]
[BlackElo "2439"]
[TimeControl "180+1"]
[EndTime "11:44:19 PST"]
[Termination "MFBerna won on time"]

1. e4 {[%clk 0:02:20.2]} 1... e5 {[%clk 0:02:55.4]} 2. Nf3 {[%clk 0:02:19.7]}
2... Nc6 {[%clk 0:02:55.9]} 3. d4 {[%clk 0:02:19.8]} 3... exd4 {[%clk
0:02:55.8]} 4. Bc4 {[%clk 0:02:20.1]} 4... Nf6 {[%clk 0:02:55]} 5. O-O {[%clk
0:02:20]} 5... Nxe4 {[%clk 0:02:50.5]} 6. Nc3 {[%clk 0:02:20.5]} 6... dxc3
{[%clk 0:02:49.7]} 7. Bxf7+ {[%clk 0:02:19.6]} 7... Kxf7 {[%clk 0:02:49.1]} 8.
Qd5+ {[%clk 0:02:19.9]} 8... Ke8 {[%clk 0:02:42.4]} 9. Re1 {[%clk 0:02:08.4]}
9... Be7 {[%clk 0:02:34.4]} 10. Rxe4 {[%clk 0:01:53.4]} 10... d6 {[%clk
0:02:25.5]} 11. Bg5 {[%clk 0:01:40.5]} 11... Rf8 {[%clk 0:02:02.6]} 12. Rae1
{[%clk 0:01:39.3]} 12... Rf7 {[%clk 0:02:02.5]} 13. bxc3 {[%clk 0:01:04.9]}
13... Kf8 {[%clk 0:01:48.4]} 14. Bxe7+ {[%clk 0:00:48.9]} 14... Nxe7 {[%clk
0:01:49.3]} 15. Qh5 {[%clk 0:00:30.8]} 15... Bf5 {[%clk 0:01:43.3]} 16. Ng5
{[%clk 0:00:27.2]} 16... Rf6 {[%clk 0:01:28.8]} 17. Rxe7 {[%clk 0:00:23.7]}
17... Qxe7 {[%clk 0:01:24.7]} 18. Rxe7 {[%clk 0:00:23.9]} 18... Kxe7 {[%clk
0:01:25.6]} 19. Nxh7 {[%clk 0:00:21.9]} 19... Rh8 {[%clk 0:01:17.8]} 20. Nxf6
{[%clk 0:00:22]} 20... Rxh5 {[%clk 0:01:15.2]} 21. Nxh5 {[%clk 0:00:22.5]} 21...
Bxc2 {[%clk 0:01:15.8]} 22. Nxg7 {[%clk 0:00:18.8]} 22... Bg6 {[%clk 0:01:08.6]}
23. h4 {[%clk 0:00:18]} 23... Kf6 {[%clk 0:01:08.9]} 24. h5 {[%clk 0:00:18]}
24... Bf7 {[%clk 0:01:09.5]} 25. h6 {[%clk 0:00:17.8]} 25... Bxa2 {[%clk
0:00:55.3]} 26. Ne8+ {[%clk 0:00:17.6]} 26... Kg6 {[%clk 0:00:53.6]} 27. Nxc7
{[%clk 0:00:18]} 27... Bc4 {[%clk 0:00:50.9]} 28. f4 {[%clk 0:00:16.7]} 28... a5
{[%clk 0:00:48.3]} 29. Ne8 {[%clk 0:00:08.5]} 29... a4 {[%clk 0:00:43.8]} 30.
Nxd6 {[%clk 0:00:08.6]} 30... a3 {[%clk 0:00:35.7]} 31. Nxc4 {[%clk 0:00:06.2]}
31... a2 {[%clk 0:00:36]} 32. Ne5+ {[%clk 0:00:06.5]} 32... Kxh6 {[%clk
0:00:35.6]} 33. Kh2 {[%clk 0:00:05.8]} 33... a1=Q {[%clk 0:00:36.5]} 34. Kh3
{[%clk 0:00:05.3]} 34... Qxc3+ {[%clk 0:00:36]} 35. Kh4 {[%clk 0:00:05.8]} 35...
Qe1+ {[%clk 0:00:28.7]} 36. g3 {[%clk 0:00:05.7]} 36... Qh1+ {[%clk 0:00:26]}
37. Kg4 {[%clk 0:00:06.1]} 37... Qd1+ {[%clk 0:00:24.6]} 38. Kf5 {[%clk
0:00:04.9]} 38... Kg7 {[%clk 0:00:21]} 39. g4 {[%clk 0:00:05.1]} 39... b5 {[%clk
0:00:21.4]} 40. Ke6 {[%clk 0:00:03.6]} 40... b4 {[%clk 0:00:20.5]} 41. f5 {[%clk
0:00:04]} 41... Qd8 {[%clk 0:00:11.6]} 42. Nd7 {[%clk 0:00:02.5]} 42... Qe8+
{[%clk 0:00:11.2]} 43. Kd6 {[%clk 0:00:02.2]} 43... b3 {[%clk 0:00:11]} 44. f6+
{[%clk 0:00:02.5]} 44... Kg6 {[%clk 0:00:09.4]} 0-1

[Event "*** Titled Tuesday Blitz"]
[Site "Chess.com"]
[Date "2020.12.01"]
[Round "9"]
[White "csati17"]
[Black "dpopadic"]
[Result "1-0"]
[WhiteElo "2583"]
[BlackElo "2404"]
[TimeControl "180+1"]
[EndTime "11:44:19 PST"]
[Termination "csati17 won by resignation"]

1. c4 {[%clk 0:03:00.9]} 1... Nf6 {[%clk 0:02:59.3]} 2. Nc3 {[%clk 0:03:00.9]}
2... g6 {[%clk 0:02:59.5]} 3. e4 {[%clk 0:03:01.1]} 3... d6 {[%clk 0:02:59.7]}
4. g3 {[%clk 0:03:01.6]} 4... Bg7 {[%clk 0:02:59.4]} 5. Bg2 {[%clk 0:03:01.3]}
5... O-O {[%clk 0:02:59.3]} 6. Nge2 {[%clk 0:03:02]} 6... Nbd7 {[%clk
0:02:58.3]} 7. O-O {[%clk 0:03:02.4]} 7... e5 {[%clk 0:02:58.4]} 8. d3 {[%clk
0:03:01.4]} 8... Nc5 {[%clk 0:02:53.8]} 9. h3 {[%clk 0:02:56.9]} 9... a5 {[%clk
0:02:53.8]} 10. Be3 {[%clk 0:02:51.6]} 10... c6 {[%clk 0:02:53.7]} 11. Qd2
{[%clk 0:02:46.6]} 11... Ne6 {[%clk 0:02:46.4]} 12. d4 {[%clk 0:02:40.7]} 12...
c5 {[%clk 0:02:39.3]} 13. dxe5 {[%clk 0:02:32.8]} 13... dxe5 {[%clk 0:02:39]}
14. Nd5 {[%clk 0:02:28.4]} 14... Nd4 {[%clk 0:02:36.8]} 15. Nxd4 {[%clk
0:02:25.6]} 15... cxd4 {[%clk 0:02:36.1]} 16. Bg5 {[%clk 0:02:25.2]} 16... Be6
{[%clk 0:02:35.1]} 17. f4 {[%clk 0:02:23.4]} 17... Bxd5 {[%clk 0:02:33.7]} 18.
fxe5 {[%clk 0:02:20.9]} 18... Bxc4 {[%clk 0:02:31.9]} 19. exf6 {[%clk
0:02:19.3]} 19... Bh8 {[%clk 0:02:23]} 20. e5 {[%clk 0:02:06.3]} 20... Bxf1
{[%clk 0:02:14.2]} 21. Rxf1 {[%clk 0:02:06.1]} 21... Re8 {[%clk 0:02:07.4]} 22.
Re1 {[%clk 0:01:57.5]} 22... Qd7 {[%clk 0:01:59.7]} 23. Kh2 {[%clk 0:01:25.1]}
23... a4 {[%clk 0:01:55]} 24. h4 {[%clk 0:01:15.7]} 24... Rad8 {[%clk
0:01:53.6]} 25. Bh3 {[%clk 0:01:14.9]} 25... Qd5 {[%clk 0:01:48]} 26. e6 {[%clk
0:01:04.4]} 26... Rxe6 {[%clk 0:01:44.2]} 27. Bxe6 {[%clk 0:01:03.7]} 27... fxe6
{[%clk 0:01:44.3]} 28. f7+ {[%clk 0:00:50.6]} 28... Kxf7 {[%clk 0:01:41.8]} 29.
Qf2+ {[%clk 0:00:44.2]} 29... Kg8 {[%clk 0:01:31.6]} 30. Bxd8 {[%clk 0:00:44.5]}
30... Qxd8 {[%clk 0:01:30.5]} 31. Rxe6 {[%clk 0:00:37.6]} 31... d3 {[%clk
0:01:29.7]} 32. Re1 {[%clk 0:00:20.4]} 32... a3 {[%clk 0:01:27.4]} 33. Rf1
{[%clk 0:00:17.4]} 33... Bg7 {[%clk 0:01:26.7]} 34. bxa3 {[%clk 0:00:16.1]}
34... d2 {[%clk 0:01:21.8]} 35. Qf7+ {[%clk 0:00:16]} 35... Kh8 {[%clk
0:01:21.5]} 36. Qxb7 {[%clk 0:00:16]} 36... h5 {[%clk 0:01:15.2]} 37. Qb3 {[%clk
0:00:15.4]} 37... Qd4 {[%clk 0:01:10.3]} 38. Qf3 {[%clk 0:00:13.1]} 38... Kh7
{[%clk 0:01:07.8]} 39. Qb3 {[%clk 0:00:10.3]} 39... Qe5 {[%clk 0:01:02.7]} 40.
Qd3 {[%clk 0:00:08.7]} 40... Qb2 {[%clk 0:00:56.5]} 41. Rf2 {[%clk 0:00:04]}
41... Bh6 {[%clk 0:00:54.1]} 42. Qd7+ {[%clk 0:00:03.1]} 42... Kh8 {[%clk
0:00:51.6]} 43. Qe8+ {[%clk 0:00:01.9]} 43... Kh7 {[%clk 0:00:50.1]} 44. Qd7+
{[%clk 0:00:02.8]} 44... Kh8 {[%clk 0:00:49.5]} 45. a4 {[%clk 0:00:03.3]} 45...
d1=Q {[%clk 0:00:44.5]} 46. Qe8+ {[%clk 0:00:02.3]} 46... Kh7 {[%clk 0:00:44.3]}
47. Rxb2 {[%clk 0:00:02.8]} 47... Bg7 {[%clk 0:00:40.6]} 48. Qe2 {[%clk
0:00:03.2]} 48... Qxa4 {[%clk 0:00:39]} 49. Rc2 {[%clk 0:00:02.5]} 49... Qa5
{[%clk 0:00:34.3]} 50. Qg2 {[%clk 0:00:03]} 50... Qa4 {[%clk 0:00:33.3]} 51. Re2
{[%clk 0:00:03.4]} 51... Bf6 {[%clk 0:00:33]} 52. Qe4 {[%clk 0:00:03.8]} 52...
Bg7 {[%clk 0:00:32.3]} 53. Qxa4 {[%clk 0:00:03.7]} 1-0

[Event "*** Titled Tuesday Blitz"]
[Site "Chess.com"]
[Date "2020.12.01"]
[Round "9"]
[White "MarceloPlaya"]
[Black "anasta10"]
[Result "0-1"]
[WhiteElo "2285"]
[BlackElo "2442"]
[TimeControl "180+1"]
[EndTime "11:44:22 PST"]
[Termination "anasta10 won on time"]

1. e4 {[%clk 0:02:55.2]} 1... e6 {[%clk 0:02:59.6]} 2. d4 {[%clk 0:02:53.2]}
2... d5 {[%clk 0:03:00.5]} 3. Nc3 {[%clk 0:02:52.2]} 3... Bb4 {[%clk 0:02:28.4]}
4. e5 {[%clk 0:02:51.2]} 4... c5 {[%clk 0:02:24.9]} 5. a3 {[%clk 0:02:50.3]}
5... Bxc3+ {[%clk 0:02:10.9]} 6. bxc3 {[%clk 0:02:50.1]} 6... Ne7 {[%clk
0:02:09.1]} 7. Qg4 {[%clk 0:02:48.9]} 7... Kf8 {[%clk 0:02:05.9]} 8. Bd3 {[%clk
0:02:46.2]} 8... Nbc6 {[%clk 0:02:04.9]} 9. Nf3 {[%clk 0:02:44.2]} 9... Qa5
{[%clk 0:02:03.8]} 10. Bd2 {[%clk 0:02:42.2]} 10... Qa4 {[%clk 0:02:03.5]} 11.
O-O {[%clk 0:02:37.5]} 11... c4 {[%clk 0:02:02.7]} 12. Be2 {[%clk 0:02:36.9]}
12... Qxc2 {[%clk 0:02:02.4]} 13. a4 {[%clk 0:02:25.8]} 13... h5 {[%clk
0:01:55.9]} 14. Qf4 {[%clk 0:02:13.7]} 14... Qf5 {[%clk 0:01:51.9]} 15. Qe3
{[%clk 0:02:05.3]} 15... Bd7 {[%clk 0:01:45]} 16. Nh4 {[%clk 0:01:54.1]} 16...
Qh7 {[%clk 0:01:42.6]} 17. Bc1 {[%clk 0:01:49.5]} 17... Nf5 {[%clk 0:01:41.4]}
18. Ba3+ {[%clk 0:01:47.6]} 18... Kg8 {[%clk 0:01:41.1]} 19. Nxf5 {[%clk
0:01:46.4]} 19... Qxf5 {[%clk 0:01:42]} 20. Bd6 {[%clk 0:01:37.8]} 20... b6
{[%clk 0:01:35.9]} 21. h3 {[%clk 0:01:07.6]} 21... Rc8 {[%clk 0:01:19.1]} 22.
Rfb1 {[%clk 0:01:04.9]} 22... Na5 {[%clk 0:01:17.3]} 23. Bd1 {[%clk 0:00:59.8]}
23... Qd3 {[%clk 0:01:06.7]} 24. Qc1 {[%clk 0:00:52.5]} 24... Rh6 {[%clk
0:01:02.4]} 25. Rb2 {[%clk 0:00:46.8]} 25... Nb3 {[%clk 0:00:31.1]} 26. Bxb3
{[%clk 0:00:42.7]} 26... cxb3 {[%clk 0:00:31.2]} 27. Rxb3 {[%clk 0:00:42.9]}
27... Rg6 {[%clk 0:00:29.2]} 28. Qe3 {[%clk 0:00:37.4]} 28... Qc2 {[%clk
0:00:28.2]} 29. Rba3 {[%clk 0:00:35.1]} 29... a5 {[%clk 0:00:26.9]} 30. Re1
{[%clk 0:00:30.9]} 30... Rc6 {[%clk 0:00:24.2]} 31. Re2 {[%clk 0:00:29.2]} 31...
Qb1+ {[%clk 0:00:23]} 32. Kh2 {[%clk 0:00:28.4]} 32... Bc8 {[%clk 0:00:22.5]}
33. Raa2 {[%clk 0:00:26]} 33... Ba6 {[%clk 0:00:21.7]} 34. Red2 {[%clk
0:00:21.6]} 34... Qf1 {[%clk 0:00:20.1]} 35. Qf3 {[%clk 0:00:19.7]} 35... Bc4
{[%clk 0:00:18.5]} 36. Rab2 {[%clk 0:00:19]} 36... Qa1 {[%clk 0:00:17.8]} 37.
Qd1 {[%clk 0:00:18.3]} 37... Qxd1 {[%clk 0:00:16.9]} 38. Rxd1 {[%clk 0:00:18.2]}
38... f6 {[%clk 0:00:15.2]} 39. Rdb1 {[%clk 0:00:17.7]} 39... fxe5 {[%clk
0:00:14.8]} 40. Bxe5 {[%clk 0:00:18]} 40... Bd3 {[%clk 0:00:14.4]} 41. Rxb6
{[%clk 0:00:18.1]} 41... Rxc3 {[%clk 0:00:14.6]} 42. Rb8+ {[%clk 0:00:16]} 42...
Kh7 {[%clk 0:00:14.9]} 43. R1b7 {[%clk 0:00:16]} 43... Be4 {[%clk 0:00:14.1]}
44. Bg3 {[%clk 0:00:14]} 44... h4 {[%clk 0:00:12.2]} 45. Ra8 {[%clk 0:00:09.8]}
45... hxg3+ {[%clk 0:00:11.8]} 46. fxg3 {[%clk 0:00:10]} 46... Rcxg3 {[%clk
0:00:12.3]} 0-1

[Event "*** Titled Tuesday Blitz"]
[Site "Chess.com"]
[Date "2020.12.01"]
[Round "9"]
[White "Sacbutt"]
[Black "Loy_Konstantin"]
[Result "0-1"]
[WhiteElo "2250"]
[BlackElo "2352"]
[TimeControl "180+1"]
[EndTime "11:44:22 PST"]
[Termination "Loy_Konstantin won by resignation"]

1. d4 {[%clk 0:03:00.9]} 1... Nf6 {[%clk 0:02:59.6]} 2. c4 {[%clk 0:03:01]} 2...
c5 {[%clk 0:03:00.1]} 3. d5 {[%clk 0:03:00.7]} 3... b5 {[%clk 0:03:00.7]} 4.
cxb5 {[%clk 0:03:01.1]} 4... a6 {[%clk 0:03:01.3]} 5. b6 {[%clk 0:03:01.8]} 5...
d6 {[%clk 0:02:59.7]} 6. Nc3 {[%clk 0:03:02.7]} 6... g6 {[%clk 0:02:59.2]} 7. e4
{[%clk 0:03:03.2]} 7... Qxb6 {[%clk 0:02:59]} 8. Nf3 {[%clk 0:03:03.7]} 8... Bg4
{[%clk 0:02:57.9]} 9. Be2 {[%clk 0:02:56.7]} 9... Bxf3 {[%clk 0:02:58]} 10. Bxf3
{[%clk 0:02:54.3]} 10... Bg7 {[%clk 0:02:58]} 11. O-O {[%clk 0:02:53.1]} 11...
Nbd7 {[%clk 0:02:58.2]} 12. Qc2 {[%clk 0:02:36.3]} 12... O-O {[%clk 0:02:57.6]}
13. Rb1 {[%clk 0:02:34.7]} 13... Ne8 {[%clk 0:02:53.5]} 14. Bg5 {[%clk
0:02:32.2]} 14... Bf6 {[%clk 0:02:49.2]} 15. Bxf6 {[%clk 0:02:30.8]} 15... exf6
{[%clk 0:02:47]} 16. Be2 {[%clk 0:02:19.2]} 16... Nc7 {[%clk 0:02:43.2]} 17. b3
{[%clk 0:02:16.4]} 17... Nb5 {[%clk 0:02:42.3]} 18. Na4 {[%clk 0:02:14.8]} 18...
Qa5 {[%clk 0:02:36.3]} 19. Rfc1 {[%clk 0:01:57.3]} 19... Nd4 {[%clk 0:02:33.3]}
20. Qd1 {[%clk 0:01:55.7]} 20... Rfe8 {[%clk 0:02:01.4]} 21. Bd3 {[%clk
0:01:50.5]} 21... Rab8 {[%clk 0:01:47.3]} 22. Qf1 {[%clk 0:01:32.6]} 22... Ra8
{[%clk 0:01:40.9]} 23. f3 {[%clk 0:01:30]} 23... Nb6 {[%clk 0:01:15.1]} 24. Nxb6
{[%clk 0:01:22.8]} 24... Qxb6 {[%clk 0:01:16]} 25. Rb2 {[%clk 0:01:13.3]} 25...
a5 {[%clk 0:01:15.5]} 26. a4 {[%clk 0:01:06.4]} 26... Rab8 {[%clk 0:00:47]} 27.
Bc4 {[%clk 0:01:05.9]} 27... Qc7 {[%clk 0:00:44.2]} 28. Qe1 {[%clk 0:01:03.2]}
28... Rb4 {[%clk 0:00:43.7]} 29. Qe3 {[%clk 0:00:44.8]} 29... Reb8 {[%clk
0:00:40.1]} 30. h4 {[%clk 0:00:40.9]} 30... Rxa4 {[%clk 0:00:29.6]} 31. bxa4
{[%clk 0:00:30.7]} 31... Rxb2 {[%clk 0:00:28.4]} 32. h5 {[%clk 0:00:29.9]} 32...
Qe7 {[%clk 0:00:18.8]} 33. hxg6 {[%clk 0:00:29.4]} 33... hxg6 {[%clk 0:00:17.4]}
34. Qf4 {[%clk 0:00:28.6]} 34... Qe5 {[%clk 0:00:17]} 35. Qxe5 {[%clk
0:00:27.5]} 35... fxe5 {[%clk 0:00:17.9]} 36. Kh2 {[%clk 0:00:24.9]} 36... Nxf3+
{[%clk 0:00:17.2]} 37. Kg3 {[%clk 0:00:23.3]} 37... Nd4 {[%clk 0:00:17.2]} 38.
Rf1 {[%clk 0:00:20.5]} 38... Kg7 {[%clk 0:00:16.2]} 39. Ra1 {[%clk 0:00:19.5]}
39... Rb4 {[%clk 0:00:15.5]} 40. Bb5 {[%clk 0:00:19.5]} 40... Nxb5 {[%clk
0:00:15.3]} 41. axb5 {[%clk 0:00:20.4]} 41... Rxb5 {[%clk 0:00:16.2]} 42. Kf3
{[%clk 0:00:20.7]} 42... f5 {[%clk 0:00:15.9]} 43. Ke3 {[%clk 0:00:21]} 43...
Kf6 {[%clk 0:00:15.7]} 44. exf5 {[%clk 0:00:21]} 44... gxf5 {[%clk 0:00:15.7]}
45. Rf1 {[%clk 0:00:21.4]} 45... Rb3+ {[%clk 0:00:14.6]} 46. Ke2 {[%clk
0:00:21.8]} 46... Rb4 {[%clk 0:00:14.6]} 47. Ke3 {[%clk 0:00:20.6]} 47... Rd4
{[%clk 0:00:13.4]} 48. Ra1 {[%clk 0:00:20.8]} 48... f4+ {[%clk 0:00:11.7]} 49.
Kf3 {[%clk 0:00:20.2]} 49... a4 {[%clk 0:00:12.1]} 50. g3 {[%clk 0:00:20]} 50...
fxg3 {[%clk 0:00:11.7]} 51. Kxg3 {[%clk 0:00:20.9]} 51... Rxd5 {[%clk
0:00:11.9]} 52. Kf3 {[%clk 0:00:21.8]} 52... Rd4 {[%clk 0:00:11.9]} 53. Ke3
{[%clk 0:00:22.7]} 53... Ke6 {[%clk 0:00:12.3]} 54. Rf1 {[%clk 0:00:23.4]} 54...
Kd5 {[%clk 0:00:12.6]} 55. Rh1 {[%clk 0:00:24.3]} 55... a3 {[%clk 0:00:12.9]}
56. Rh6 {[%clk 0:00:25.2]} 56... a2 {[%clk 0:00:11.5]} 57. Rh8 {[%clk
0:00:26.1]} 57... Ra4 {[%clk 0:00:11.5]} 58. Ra8 {[%clk 0:00:27]} 58... Rxa8
{[%clk 0:00:10.7]} 0-1